bitfinex/quotes_SOLUSD_20260226
["timestamp","ask_amount","ask_price","bid_price","bid_amount"]
[1772074444342,101.74954063,88.453,88.365,0.55938854]
[1772074444343,0.59420872,88.409,88.365,0.55938854]
[1772074444539,0.59420872,88.399,88.36,9.4751179]
[1772074445144,0.59420872,88.399,88.37,9.4751179]
[1772074445344,0.59420872,88.399,88.371,0.55938854]
[1772074446041,0.59420872,88.399,88.371,0.33337854]
[1772074447361,0.59420872,88.399,88.372,11.31580138]
[1772074447666,0.59420872,88.407,88.38,9.4751179]
[1772074447965,0.59420872,88.407,88.372,11.31580138]
[1772074448773,0.59420872,88.407,88.38,9.4751179]
[1772074449074,11.90399507,88.419,88.375,3.69383402]
[1772074449253,11.30911659,88.425,88.4,9.4751179]
[1772074449569,9.4751179,88.44,88.401,0.55938854]
[1772074449758,9.4751179,88.44,88.391,0.55938854]
[1772074450460,9.4751179,88.44,88.393,0.55938854]
[1772074450856,39.57530048,88.439,88.393,0.55938854]
[1772074451164,9.4751179,88.43,88.393,0.55938854]
[1772074451348,3.54189592,88.43,88.393,0.55938854]
[1772074451668,0.59420872,88.429,88.385,0.55938854]
[1772074451869,0.59420872,88.409,88.369,0.55938854]
[1772074452354,3.54189592,88.41,88.32,3.54189592]
[1772074452355,0.59420872,88.399,88.361,0.55938854]
[1772074452755,3.69383402,88.437,88.351,0.55938854]
[1772074452756,0.59420872,88.389,88.351,0.55938854]
[1772074453265,0.59420872,88.387,88.353,0.55938854]
[1772074454666,56.54920931,88.419,88.352,11.31836291]
[1772074454667,0.59420872,88.411,88.381,0.55938854]
[1772074455054,11.31093767,88.41,88.381,0.55938854]
[1772074455583,11.90397283,88.42,88.391,0.55938854]
[1772074456377,0.59420872,88.419,88.391,0.55938854]
[1772074457481,0.59420872,88.419,88.382,0.55938854]
[1772074457954,0.59420872,88.417,88.374,0.55938854]
[1772074459961,56.5371763,88.438,88.37,9.4954989]
[1772074459962,0.59420872,88.409,88.37,9.4954989]
[1772074460563,0.59420872,88.409,88.37,20.81152303]
[1772074461174,9.4954989,88.4,88.366,0.55938854]
[1772074461366,0.59420872,88.399,88.365,11.31661924]
[1772074461675,0.59420872,88.399,88.366,0.55938854]
[1772074461870,0.59420872,88.399,88.37,9.4954989]
[1772074463858,0.59420872,88.397,88.366,0.55938854]
[1772074466454,9.4954989,88.4,88.36,9.4954989]
[1772074466455,0.599979,88.395,88.36,9.4954989]
[1772074466660,0.599979,88.395,88.357,0.60965826]
[1772074468054,0.599979,88.389,88.357,0.60965826]
[1772074471176,11.31375299,88.388,88.358,0.60965826]
[1772074471678,11.91373199,88.388,88.358,0.60965826]
[1772074472661,0.61441348,88.387,88.358,0.60965826]
[1772074475284,11.92842248,88.386,88.358,0.60965826]
[1772074475579,11.314009,88.386,88.358,0.60965826]
[1772074476685,0.61441348,88.391,88.361,0.57103977]
[1772074478784,3.54480043,88.39,88.361,0.57103977]
[1772074479081,0.61441348,88.389,88.361,0.57103977]
[1772074480290,0.61441348,88.387,88.361,0.57103977]
[1772074481897,0.61441348,88.387,88.355,0.57103977]
[1772074482690,0.61441348,88.385,88.355,0.57103977]
[1772074482874,0.61441348,88.385,88.349,0.57103977]
[1772074483077,11.314009,88.386,88.333,0.57103977]
[1772074483078,0.61441348,88.369,88.333,0.57103977]
[1772074483972,0.61441348,88.369,88.334,0.57103977]
[1772074484194,0.61441348,88.385,88.351,0.57103977]
[1772074484488,3.54480043,88.4,88.361,0.57103977]
[1772074484489,11.92789709,88.391,88.361,0.57103977]
[1772074484880,0.61441348,88.399,88.371,0.57103977]
[1772074485094,0.61441348,88.406,88.381,0.57103977]
[1772074485297,11.31114421,88.409,88.381,0.57103977]
[1772074486985,11.31114421,88.409,88.36,3.54480043]
[1772074486986,0.61441348,88.399,88.361,0.57103977]
[1772074488575,3.54480043,88.39,88.353,11.31819463]
[1772074488794,0.61441348,88.389,88.354,0.57103977]
[1772074489176,0.61441348,88.387,88.361,0.57103977]
[1772074489801,11.92736347,88.395,88.361,0.57103977]
[1772074490599,11.92736347,88.395,88.37,3.54480043]
[1772074490781,0.61441348,88.394,88.37,3.54480043]
[1772074492280,11.31311302,88.393,88.37,3.54480043]
[1772074492486,11.31311302,88.393,88.361,0.57103977]
[1772074492487,0.61441348,88.392,88.361,0.57103977]
[1772074494692,11.313369,88.391,88.361,0.57103977]
[1772074494891,11.92778248,88.391,88.361,0.57103977]
[1772074495091,0.61441348,88.39,88.361,0.57103977]
[1772074496798,0.61441348,88.39,88.37,4.14250448]
[1772074497007,0.6266842,88.395,88.371,0.59770405]
[1772074498000,11.31298504,88.394,88.371,0.59770405]
[1772074498207,0.6266842,88.393,88.364,0.59770405]
[1772074498504,0.6266842,88.414,88.371,0.59770405]
[1772074498887,0.6266842,88.413,88.371,0.59770405]
[1772074500393,0.6266842,88.409,88.371,0.59770405]
[1772074501103,0.6266842,88.399,88.351,0.59770405]
[1772074501706,0.6266842,88.389,88.351,0.59770405]
[1772074501911,0.6266842,88.379,88.341,0.59770405]
[1772074502205,0.6266842,88.379,88.34,3.54480043]
[1772074502409,0.6266842,88.369,88.333,0.59770405]
[1772074504504,0.6266842,88.367,88.333,0.59770405]
[1772074504805,0.6266842,88.359,88.324,11.32194526]
[1772074505185,0.6266842,88.359,88.32,3.54480043]
[1772074505510,0.6266842,88.359,88.321,0.59770405]
[1772074506112,39.60709758,88.368,88.308,0.59770405]
[1772074506113,0.6266842,88.349,88.308,0.59770405]
[1772074506287,39.60709758,88.368,88.308,0.59770405]
[1772074506288,0.6266842,88.339,88.308,0.59770405]
[1772074506494,0.6266842,88.344,88.311,0.59770405]
[1772074506814,0.6266842,88.342,88.311,0.59770405]
[1772074509899,0.6266842,88.342,88.313,0.59770405]
[1772074510099,0.6266842,88.34,88.313,0.59770405]
[1772074511407,0.6266842,88.338,88.313,0.59770405]
[1772074513210,0.6266842,88.336,88.313,0.59770405]
[1772074515617,0.6266842,88.334,88.31,3.54480043]
[1772074516111,0.6266842,88.334,88.294,0.59770405]
[1772074516295,11.32054112,88.335,88.294,0.59770405]
[1772074516296,0.6266842,88.329,88.294,0.59770405]
[1772074517316,0.6266842,88.329,88.296,0.59770405]
[1772074517500,0.6266842,88.384,88.296,0.59770405]
[1772074517698,0.6266842,88.384,88.29,3.74480043]
[1772074517699,0.6266842,88.374,88.346,0.59770405]
[1772074517894,3.54480043,88.41,88.36,3.54480043]
[1772074517895,39.58872964,88.409,88.36,3.54480043]
[1772074518116,39.58872964,88.409,88.37,3.54480043]
[1772074518320,39.58872964,88.409,88.361,0.59770405]
[1772074518498,3.54480043,88.38,88.33,3.54480043]
[1772074518700,3.54480043,88.38,88.331,0.59770405]
[1772074518896,3.54480043,88.37,88.331,0.59770405]
[1772074519101,3.54480043,88.4,88.323,0.59770405]
[1772074519102,3.54480043,88.36,88.323,0.59770405]
[1772074519329,3.54480043,88.35,88.313,0.59770405]
[1772074519929,0.6266842,88.347,88.313,0.59770405]
[1772074520116,0.6266842,88.347,88.31,3.54480043]
[1772074520426,0.6266842,88.347,88.305,0.59770405]
[1772074521707,0.6266842,88.339,88.305,0.59770405]
[1772074522094,0.6266842,88.337,88.305,0.59770405]
[1772074522796,3.54480043,88.36,88.3,3.54480043]
[1772074522797,3.54480043,88.39,88.331,0.59770405]
[1772074523013,0.6266842,88.389,88.35,3.54480043]
[1772074523203,0.6266842,88.379,88.348,0.59770405]
[1772074523411,0.6266842,88.379,88.34,3.54480043]
[1772074523917,0.6266842,88.379,88.341,0.59770405]
[1772074524517,0.6266842,88.389,88.361,0.59770405]
[1772074524718,11.3129705,88.395,88.361,0.59770405]
[1772074525517,0.6266842,88.408,88.371,0.59770405]
[1772074525718,0.6266842,88.406,88.371,0.59770405]
[1772074526600,0.5790652,88.404,88.371,0.59770405]
[1772074527219,0.5790652,88.389,88.351,0.61126821]
[1772074527424,0.5790652,88.398,88.361,0.61126821]
[1772074529235,0.5790652,88.398,88.363,0.61126821]
[1772074529529,11.3126011,88.397,88.363,0.61126821]
[1772074529897,11.8916663,88.397,88.363,0.61126821]
[1772074530822,0.5790652,88.396,88.363,0.61126821]
[1772074533425,0.5790652,88.396,88.365,0.58116664]
[1772074533825,11.31285706,88.395,88.365,0.58116664]
[1772074534126,11.913283,88.395,88.365,0.58116664]
[1772074534431,0.60042594,88.395,88.365,0.58116664]
[1772074536222,0.60042594,88.395,88.37,10.07420846]
[1772074536419,11.91341098,88.394,88.37,10.07420846]
[1772074536618,0.60042594,88.393,88.361,0.58116664]
[1772074537525,9.49304182,88.39,88.354,0.58116664]
[1772074537730,0.60042594,88.389,88.354,0.58116664]
[1772074542129,0.60042594,88.387,88.356,0.58116664]
[1772074542829,0.60042594,88.387,88.361,0.58116664]
[1772074545846,0.60042594,88.379,88.341,0.58116664]
[1772074546931,56.55494016,88.41,88.341,0.58116664]
[1772074546932,0.60042594,88.369,88.341,0.58116664]
[1772074547128,0.60042594,88.369,88.331,0.58116664]
[1772074547325,0.60042594,88.359,88.331,0.58116664]
[1772074550929,11.31759433,88.358,88.331,0.58116664]
[1772074551542,28.28758288,88.378,88.333,0.58116664]
[1772074551543,0.60042594,88.364,88.333,0.58116664]
[1772074552839,0.60042594,88.359,88.325,0.58116664]
[1772074554541,0.60042594,88.357,88.325,0.58116664]
[1772074554746,0.60042594,88.357,88.326,11.32169463]
[1772074554956,0.60042594,88.357,88.321,11.32225745]
[1772074555145,0.60042594,88.357,88.322,0.58116664]
[1772074556031,0.59282409,88.349,88.309,0.62703612]
[1772074556233,0.59282409,88.339,88.311,0.62703612]
[1772074556440,0.59282409,88.339,88.304,0.62703612]
[1772074556641,0.59282409,88.337,88.304,11.32445628]
[1772074557419,0.59282409,88.329,88.299,11.95206517]
[1772074557624,0.59282409,88.329,88.292,0.62703612]
[1772074557823,0.59282409,88.329,88.294,0.62703612]
[1772074558023,0.59282409,88.329,88.293,11.32592617]
[1772074558024,3.54738566,88.34,88.301,0.62703612]
[1772074558236,0.59282409,88.354,88.321,0.62703612]
[1772074558443,11.3182348,88.353,88.321,0.62703612]
[1772074558643,0.59282409,88.352,88.321,0.62703612]
[1772074559036,0.59282409,88.349,88.321,0.62703612]
[1772074560847,0.59282409,88.347,88.321,0.62703612]
[1772074561046,0.59282409,88.347,88.295,0.62703612]
[1772074561244,0.59282409,88.329,88.295,0.62703612]
[1772074563051,0.59282409,88.327,88.3,3.54738566]
[1772074563553,0.59282409,88.327,88.3,4.17442178]
[1772074564548,0.59282409,88.327,88.3,3.54738566]
[1772074564744,0.59282409,88.327,88.301,0.62703612]
[1772074565043,0.59282409,88.325,88.301,0.62703612]
[1772074566445,11.32114338,88.331,88.301,0.62703612]
[1772074566648,11.32114338,88.331,88.29,0.2]
[1772074566649,0.59282409,88.349,88.311,0.62703612]
[1772074567239,0.59282409,88.346,88.313,0.62703612]
[1772074567446,11.31833161,88.353,88.321,0.62703612]
[1772074567641,11.90974445,88.364,88.33,3.54738566]
[1772074567840,11.90974445,88.364,88.331,0.62703612]
[1772074568047,0.59282409,88.363,88.331,0.62703612]
[1772074572364,0.59282409,88.363,88.293,45.30351938]
[1772074572365,0.59282409,88.349,88.309,0.62703612]
[1772074574767,0.59282409,88.347,88.311,0.62703612]
[1772074575548,4.14020975,88.34,88.311,0.62703612]
[1772074575751,0.59282409,88.339,88.311,0.62703612]
[1772074577167,0.59282409,88.339,88.313,0.62703612]
[1772074578962,11.32015667,88.338,88.313,0.62703612]
[1772074580550,3.54738566,88.34,88.315,0.62703612]
[1772074580750,0.59282409,88.369,88.322,0.62703612]
[1772074581067,48.79635801,88.4,88.332,0.62703612]
[1772074581068,4.14020975,88.38,88.332,0.62703612]
[1772074581259,0.59282409,88.379,88.332,0.62703612]
[1772074582059,0.59282409,88.379,88.334,0.62703612]
[1772074582254,11.31400398,88.387,88.341,0.62703612]
[1772074582655,0.59282409,88.386,88.341,0.62703612]
[1772074582856,3.54738566,88.38,88.341,0.62703612]
[1772074583553,3.54738566,88.38,88.343,0.62703612]
[1772074584674,11.31442265,88.383,88.343,0.62703612]
[1772074584975,0.59282409,88.379,88.343,0.62703612]
[1772074585776,0.59282409,88.379,88.345,0.62703612]
[1772074587175,11.90782058,88.379,88.345,0.62703612]
[1772074587478,11.31499649,88.379,88.345,0.62703612]
[1772074588077,11.31499649,88.379,88.35,3.54738566]
[1772074588280,11.31499649,88.379,88.351,0.61549269]
[1772074588767,0.61844562,88.38,88.351,0.61549269]
[1772074589574,0.61844562,88.378,88.351,0.61549269]
[1772074592176,11.3143649,88.384,88.353,0.61042146]
[1772074592961,11.3143649,88.384,88.352,11.31836291]
[1772074592962,11.31367791,88.389,88.361,0.61042146]
[1772074594197,0.64148268,88.392,88.361,0.61042146]
[1772074594483,0.64148268,88.392,88.36,3.54738566]
[1772074594484,11.313369,88.391,88.363,0.61042146]
[1772074594883,11.95485168,88.391,88.363,0.61042146]
[1772074595598,0.64148268,88.391,88.363,0.61042146]
[1772074595764,0.64148268,88.417,88.364,0.61042146]
[1772074595960,0.64148268,88.424,88.401,0.61042146]
[1772074596176,11.30927473,88.423,88.401,0.61042146]
[1772074596378,0.64148268,88.422,88.39,3.54441134]
[1772074596581,0.64148268,88.419,88.383,0.61042146]
[1772074597261,0.64148268,88.419,88.39,3.54441134]
[1772074597462,0.64148268,88.426,88.391,0.61042146]
[1772074597662,0.64148268,88.426,88.401,0.61042146]
[1772074598672,0.64148268,88.426,88.403,0.61042146]
[1772074599480,3.69383402,88.464,88.401,11.31208922]
[1772074599481,0.64148268,88.446,88.421,0.61042146]
[1772074600868,0.64148268,88.444,88.411,0.61042146]
[1772074601072,0.64148268,88.439,88.411,0.61042146]
[1772074601274,0.64148268,88.444,88.411,0.61042146]
[1772074601669,0.64148268,88.439,88.401,0.61042146]
[1772074601888,0.64148268,88.448,88.42,3.54441134]
[1772074602190,11.30620597,88.447,88.421,0.61042146]
[1772074602589,0.64148268,88.448,88.421,0.61042146]
[1772074602994,11.94763894,88.448,88.421,0.61042146]
[1772074604077,0.64148268,88.447,88.413,0.61042146]
[1772074605385,0.64148268,88.439,88.406,0.61042146]
[1772074606192,0.64148268,88.439,88.411,0.61042146]
[1772074606408,0.64148268,88.445,88.411,0.61042146]
[1772074607599,0.64148268,88.443,88.412,11.3106818]
[1772074607799,0.64148268,88.443,88.413,0.61042146]
[1772074608293,11.30658948,88.444,88.413,0.61042146]
[1772074608489,11.30658948,88.444,88.412,11.3106818]
[1772074608490,11.94731908,88.45,88.421,0.61042146]
[1772074608797,0.64148268,88.449,88.421,0.61042146]
[1772074609395,11.30607814,88.448,88.421,0.61042146]
[1772074609901,0.64148268,88.447,88.421,0.61042146]
[1772074612396,11.3063338,88.446,88.421,0.61042146]
[1772074612898,0.64148268,88.445,88.421,0.61042146]
[1772074615302,11.94807216,88.444,88.421,0.61042146]
[1772074617212,11.30684516,88.442,88.421,0.61042146]
[1772074617703,0.60869975,88.439,88.401,0.59854163]
[1772074619791,39.57395807,88.442,88.403,0.59854163]
[1772074619792,0.60869975,88.437,88.403,0.59854163]
[1772074622012,0.60869975,88.437,88.4,3.54441134]
[1772074622013,11.30557426,88.452,88.421,0.59854163]
[1772074622317,0.60869975,88.485,88.404,39.59096873]
[1772074622318,0.1,88.49,88.446,0.28432314]
[1772074622519,0.1,88.49,88.44,7.08882268]
[1772074622520,0.1,88.49,88.459,0.59854163]
[1772074622707,3.54441134,88.48,88.443,0.59854163]
[1772074623019,3.54441134,88.47,88.443,0.59854163]
[1772074623189,3.54441134,88.48,88.443,0.59854163]
[1772074624110,11.30211688,88.479,88.443,11.9051604]
[1772074624408,0.50050096,88.478,88.444,0.59854163]
[1772074625011,11.30211688,88.479,88.444,0.59854163]
[1772074625314,11.30211688,88.479,88.445,0.59854163]
[1772074625514,11.30083965,88.489,88.461,0.59854163]
[1772074626313,0.1,88.49,88.461,0.59854163]
[1772074626811,0.50177862,88.479,88.441,0.59854163]
[1772074627511,0.50177862,88.479,88.442,0.59854163]
[1772074627715,4.04682304,88.47,88.442,0.59854163]
[1772074628221,0.1,88.49,88.431,0.59854163]
[1772074628222,0.50304913,88.459,88.431,0.59854163]
[1772074628421,11.80784914,88.458,88.431,0.59854163]
[1772074628633,3.54441134,88.44,88.411,0.59854163]
[1772074628923,0.50304913,88.447,88.412,0.59854163]
[1772074629898,0.50367202,88.455,88.412,0.59854163]
[1772074630105,0.50429618,88.449,88.412,0.59854163]
[1772074631099,11.30607814,88.448,88.412,0.59854163]
[1772074631323,11.81099329,88.448,88.412,0.59854163]
[1772074631518,11.81099329,88.448,88.414,0.59854163]
[1772074632116,11.30607814,88.448,88.414,0.59854163]
[1772074632317,56.50535404,88.488,88.413,11.31055387]
[1772074632318,11.30535556,88.454,88.421,0.59854163]
[1772074635312,11.30467222,88.459,88.421,0.59854163]
[1772074636108,11.30467222,88.459,88.423,0.59854163]
[1772074636728,11.30467222,88.459,88.422,11.30940263]
[1772074636729,11.30403327,88.464,88.431,0.59854163]
[1772074637027,28.25472714,88.481,88.441,0.59854163]
[1772074637325,11.81097457,88.476,88.442,0.59854163]
[1772074639631,11.81097457,88.476,88.441,11.30696054]
[1772074639632,11.30254658,88.476,88.444,0.59854163]
[1772074639932,11.30254658,88.476,88.43,3.54441134]
[1772074639933,0.51009372,88.469,88.43,3.54441134]
[1772074640135,0.51009372,88.459,88.431,0.59854163]
[1772074641316,0.51009372,88.459,88.409,28.27738582]
[1772074641317,0.51063174,88.449,88.413,0.59854163]
[1772074641514,0.51063174,88.449,88.361,103.1]
[1772074641515,0.51063174,88.429,88.391,0.59854163]
[1772074641715,11.30863527,88.428,88.393,0.59854163]
[1772074643827,11.30863527,88.428,88.394,11.31298504]
[1772074644011,11.30799809,88.433,88.395,0.59854163]
[1772074644411,3.54441134,88.42,88.395,0.59854163]
[1772074644629,0.51220893,88.429,88.395,0.59854163]
[1772074646335,11.30863527,88.428,88.395,0.59854163]
[1772074647935,0.51423603,88.427,88.395,0.59854163]
[1772074649619,11.82410274,88.426,88.395,0.59854163]
[1772074650736,11.30889105,88.426,88.395,0.59854163]
[1772074651619,11.30889105,88.426,88.397,0.65135718]
[1772074653533,11.30819861,88.432,88.4,3.54441134]
[1772074653741,11.30819861,88.432,88.401,0.64047109]
[1772074654241,3.54441134,88.43,88.401,0.64047109]
[1772074654429,0.5180289,88.429,88.401,0.64047109]
[1772074656442,0.51891952,88.427,88.401,0.64047109]
[1772074658428,45.22033888,88.456,88.381,62.2]
[1772074658429,0.5198014,88.409,88.381,62.2]
[1772074658635,3.54218701,88.4,88.377,0.64047109]
[1772074658940,3.54218701,88.4,88.354,3.69383402]
[1772074658941,0.5198014,88.399,88.37,0.64047109]
[1772074660546,11.31247313,88.398,88.37,0.64047109]
[1772074660923,0.52068068,88.397,88.37,0.64047109]
[1772074661127,3.54218701,88.39,88.37,0.64047109]
[1772074661743,0.52109963,88.389,88.353,0.64047109]
[1772074662130,3.54218701,88.38,88.353,0.64047109]
[1772074662330,4.06370569,88.39,88.353,0.64047109]
[1772074662747,15.37722405,88.39,88.355,0.64047109]
[1772074662927,0.52193228,88.389,88.355,0.64047109]
[1772074664131,14.85570537,88.39,88.35,3.74218701]
[1772074664132,11.31351836,88.39,88.357,0.64047109]
[1772074664549,14.85570537,88.39,88.357,0.64047109]
[1772074665450,0.52274578,88.389,88.357,0.64047109]
[1772074666730,0.52315241,88.387,88.357,0.64047109]
[1772074666931,0.52315241,88.387,88.35,0.2]
[1772074667152,0.52354445,88.379,88.35,0.2]
[1772074667544,0.52354445,88.379,88.351,0.64047109]
[1772074669149,11.31503315,88.378,88.351,0.64047109]
[1772074669370,11.83934583,88.378,88.351,0.64047109]
[1772074670266,0.52469296,88.375,88.351,0.64047109]
[1772074671562,11.31528921,88.376,88.351,0.64047109]
[1772074673545,0.5258173,88.424,88.361,0.64047109]
[1772074673747,11.22587422,88.454,88.371,0.64047109]
[1772074673748,0.5258173,88.409,88.371,0.64047109]
[1772074674059,0.5258173,88.416,88.381,0.64047109]
[1772074674764,11.31029802,88.415,88.391,0.64047109]
[1772074680874,0.65523886,88.409,88.37,3.54218701]
[1772074682484,11.96494288,88.42,88.361,3.97815716]
[1772074682651,11.30970402,88.42,88.39,3.54218701]
[1772074682852,0.65523886,88.421,88.391,0.60188341]
[1772074683150,0.65523886,88.419,88.391,0.60188341]
[1772074684170,11.30965844,88.42,88.393,0.60188341]
[1772074685054,3.54218701,88.41,88.364,0.60188341]
[1772074685359,0.65523886,88.399,88.364,0.60188341]
[1772074685662,0.65523886,88.406,88.371,0.60188341]
[1772074686269,0.65523886,88.419,88.381,0.60188341]
[1772074686972,0.65523886,88.409,88.381,0.60188341]
[1772074690178,11.31119355,88.408,88.381,0.60188341]
[1772074690359,0.65523886,88.407,88.381,0.60188341]
[1772074694373,3.54218701,88.41,88.381,0.60188341]
[1772074694374,11.31144944,88.406,88.381,0.60188341]
[1772074694593,0.65523886,88.405,88.381,0.60188341]
[1772074697688,0.65523886,88.389,88.356,0.60188341]
[1772074697985,0.65523886,88.379,88.356,0.60188341]
[1772074700269,11.97027201,88.378,88.356,0.60188341]
[1772074700587,11.96975002,88.383,88.356,0.60188341]
[1772074701588,0.65523886,88.382,88.356,0.60188341]
[1772074702479,0.65523886,88.379,88.351,0.60188341]
[1772074704588,0.65523886,88.377,88.351,0.60188341]
[1772074705181,11.31503315,88.378,88.351,0.60188341]
[1772074705395,11.31410758,88.386,88.353,0.60188341]
[1772074706586,11.31410758,88.386,88.355,0.61797963]
[1772074707090,0.67263447,88.385,88.355,0.61797963]
[1772074708085,11.31410758,88.386,88.355,0.61797963]
[1772074708284,0.67263447,88.385,88.355,0.61797963]
[1772074709090,11.31426502,88.384,88.355,0.61797963]
[1772074715176,11.31426502,88.384,88.357,0.62299861]
[1772074717799,0.64536435,88.383,88.357,0.62299861]
[1772074720584,0.64536435,88.381,88.357,0.62299861]
[1772074721900,0.64536435,88.379,88.35,0.2]
[1772074723082,0.64536435,88.377,88.35,0.2]
[1772074726702,0.64536435,88.375,88.35,0.2]
[1772074729211,0.64536435,88.373,88.35,0.2]
[1772074730011,0.64536435,88.369,88.33,3.54486076]
[1772074730195,0.64536435,88.369,88.329,0.62299861]
[1772074730794,0.64536435,88.369,88.33,3.54486076]
[1772074731104,0.64536435,88.369,88.331,0.62299861]
[1772074732005,0.64536435,88.367,88.331,11.94403686]
[1772074732208,0.64536435,88.367,88.332,0.62299861]
[1772074733911,3.54486076,88.36,88.32,3.54486076]
[1772074734216,0.64536435,88.359,88.32,4.16785937]
[1772074734510,0.64536435,88.349,88.307,0.62299861]
[1772074734697,0.64536435,88.349,88.31,4.16785937]
[1772074734895,0.64536435,88.349,88.311,0.62299861]
[1772074736510,0.62380912,88.347,88.311,0.62299861]
[1772074736711,11.31887535,88.348,88.29,3.89383402]
[1772074736712,0.62380912,88.339,88.297,0.64239442]
[1772074736912,0.62380912,88.339,88.301,0.64239442]
[1772074737814,0.62380912,88.339,88.311,0.64239442]
[1772074738614,0.62380912,88.337,88.311,0.64239442]
[1772074740720,0.62380912,88.335,88.311,0.64239442]
[1772074743311,0.62380912,88.333,88.311,0.64239442]
[1772074746916,11.31835598,88.353,88.321,0.64239442]
[1772074748803,39.61113185,88.359,88.321,0.64239442]
[1772074749010,0.62380912,88.358,88.321,0.64239442]
[1772074749523,0.62380912,88.349,88.321,0.64239442]
[1772074751812,11.31887535,88.348,88.321,0.64239442]
[1772074752009,0.62380912,88.347,88.321,0.64239442]
[1772074753022,0.62380912,88.345,88.321,0.64239442]
[1772074754807,0.62380912,88.345,88.308,0.64239442]
[1772074755029,0.62380912,88.343,88.308,0.64239442]
[1772074755201,0.62380912,88.343,88.31,0.64239442]
[1772074757125,0.62380912,88.339,88.312,0.64239442]
[1772074757335,0.62380912,88.359,88.312,0.64239442]
[1772074757625,0.62380912,88.358,88.312,0.64239442]
[1772074758405,0.62380912,88.349,88.312,0.64239442]
[1772074759113,0.62380912,88.358,88.314,0.64239442]
[1772074759829,0.62380912,88.349,88.314,0.64239442]
[1772074761725,0.62380912,88.347,88.314,0.64239442]
[1772074762112,0.62380912,88.347,88.31,3.54486076]
[1772074762113,0.62380912,88.347,88.316,0.64239442]
[1772074763515,0.62380912,88.347,88.321,0.64239442]
[1772074764026,0.62380912,88.347,88.32,14.86729017]
[1772074764027,3.54486076,88.33,88.3,0.6906829]
[1772074764232,3.54486076,88.34,88.3,0.6906829]
[1772074765714,11.32002852,88.339,88.3,3.54486076]
[1772074765931,11.32002852,88.339,88.301,0.6906829]
[1772074767231,11.32002852,88.339,88.303,0.6906829]
[1772074768521,28.29782899,88.346,88.305,0.6906829]
[1772074768831,28.29782899,88.346,88.311,0.6906829]
[1772074770418,3.54486076,88.33,88.301,0.6906829]
[1772074770616,39.62458535,88.329,88.291,0.6906829]
[1772074776319,11.3213101,88.329,88.301,0.6906829]
[1772074776839,11.32002852,88.339,88.311,0.6906829]
[1772074777835,39.61561534,88.349,88.311,0.6906829]
[1772074778032,0.02089189,88.348,88.311,0.6906829]
[1772074778230,11.31874724,88.349,88.313,0.6906829]
[1772074778435,0.02089189,88.379,88.341,0.6906829]
[1772074780257,0.0230885,88.369,88.331,0.6906829]
[1772074780441,0.0230885,88.359,88.331,0.6906829]
[1772074782046,0.02523492,88.358,88.319,0.6906829]
[1772074782551,0.02523492,88.358,88.318,11.32272017]
[1772074782552,0.02523492,88.358,88.321,0.6906829]
[1772074782754,11.31746624,88.359,88.321,0.6906829]
[1772074784653,11.31746624,88.359,88.32,3.54837425]
[1772074784654,0.02732977,88.369,88.323,0.6906829]
[1772074787145,0.03037355,88.359,88.323,0.6906829]
[1772074789257,0.03234728,88.358,88.323,0.6906829]
[1772074790555,0.0333184,88.349,88.311,0.6906829]
[1772074790939,0.0333184,88.339,88.291,0.6906829]
[1772074791329,0.0333184,88.339,88.29,3.74837425]
[1772074791330,0.03429023,88.329,88.293,0.6906829]
[1772074792640,0.03523695,88.328,88.293,0.6906829]
[1772074793358,0.03523695,88.328,88.295,0.6906829]
[1772074800555,104.1,88.358,88.29,3.74837425]
[1772074800556,11.32075696,88.334,88.301,0.6906829]
[1772074800743,11.31913159,88.346,88.311,0.6906829]
[1772074800945,11.31859102,88.351,88.32,3.54837425]
[1772074801145,0.04365012,88.361,88.321,0.6906829]
[1772074801667,3.54837425,88.36,88.331,0.6906829]
[1772074802069,0.04365012,88.363,88.331,0.6906829]
[1772074802562,3.54837425,88.36,88.331,0.6906829]
[1772074802865,0.04441435,88.359,88.331,0.6906829]
[1772074804357,0.69049707,88.349,88.301,0.28432314]
[1772074804661,0.69049707,88.349,88.295,28.31394996]
[1772074804662,11.32143827,88.328,88.291,11.32618273]
[1772074804862,11.32065202,88.335,88.3,3.54837425]
[1772074805049,11.31968409,88.342,88.3,3.54837425]
[1772074805664,3.69383402,88.369,88.291,39.64163957]
[1772074805665,0.69049707,88.366,88.33,3.54837425]
[1772074805841,11.31696318,88.363,88.33,3.54837425]
[1772074806246,11.31696318,88.363,88.331,0.67419866]
[1772074807962,0.69049707,88.362,88.331,0.67419866]
[1772074808149,4.23887132,88.36,88.331,0.67419866]
[1772074808344,0.69049707,88.359,88.331,0.67419866]
[1772074809166,0.69049707,88.357,88.321,0.67419866]
[1772074810467,0.69049707,88.329,88.291,0.67419866]
[1772074810767,0.69049707,88.309,88.284,0.67419866]
[1772074811060,11.32400235,88.308,88.284,0.67419866]
[1772074811762,0.69049707,88.307,88.284,0.67419866]
[1772074812350,3.54837425,88.3,88.28,0.2]
[1772074812554,0.69049707,88.299,88.28,0.2]
[1772074812755,0.69049707,88.307,88.28,0.87419866]
[1772074813162,11.32425882,88.306,88.28,0.87419866]
[1772074813469,12.01475589,88.306,88.28,0.87419866]